bitfinex/quotes_BTCUSD_20240817
["timestamp","ask_amount","ask_price","bid_price","bid_amount"]
[1723878141606,0.29925934,59276.0,59275.0,0.14283128]
[1723878141776,0.29925934,59276.0,59275.0,0.1426075]
[1723878143298,0.29900417,59276.0,59275.0,0.1426075]
[1723878146257,0.29900417,59276.0,59275.0,0.2775715]
[1723878147832,0.29900417,59276.0,59275.0,0.1426075]
[1723878153728,0.30600162,59276.0,59275.0,0.1426075]
[1723878156661,0.31046066,59276.0,59275.0,0.1426075]
[1723878158020,0.31046066,59276.0,59275.0,0.0807075]
[1723878161193,0.31039108,59276.0,59275.0,0.0807075]
[1723878161602,0.31039108,59276.0,59275.0,0.0029075]
[1723878161603,0.40499108,59276.0,59275.0,0.0029075]
[1723878161817,0.55676512,59276.0,59275.0,0.0029075]
[1723878165946,0.55694762,59276.0,59275.0,0.0029075]
[1723878166310,0.55668728,59276.0,59275.0,0.0029075]
[1723878169228,0.46208728,59276.0,59275.0,0.1378715]
[1723878169420,0.55668728,59276.0,59275.0,0.2200715]
[1723878169619,0.55668728,59276.0,59275.0,0.0851075]
[1723878170396,0.55644704,59276.0,59275.0,0.0851075]
[1723878170629,0.55644704,59276.0,59275.0,0.2202575]
[1723878170830,0.55644704,59276.0,59275.0,0.0852935]
[1723878173103,0.55592546,59276.0,59275.0,0.0852935]
[1723878174829,0.55592546,59276.0,59275.0,0.1483935]
[1723878179497,0.3083093,59276.0,59275.0,0.5532855]
[1723878179731,0.4601248,59276.0,59275.0,0.5532855]
[1723878180737,0.4601248,59276.0,59275.0,0.55350928]
[1723878182718,0.46063956,59276.0,59275.0,0.55350928]
[1723878183345,0.46037858,59276.0,59275.0,0.99499182]
[1723878184103,0.30855571,59276.0,59275.0,0.99499182]
[1723878187036,0.85829161,59276.0,59275.0,0.0020935]
[1723878187249,0.85829161,59276.0,59275.0,0.0030935]
[1723878187250,0.543605,59276.0,59275.0,0.0030935]
[1723878187659,0.39180761,59276.0,59275.0,0.0030935]
[1723878188049,0.54360658,59276.0,59275.0,0.0030935]
[1723878188636,0.39180761,59276.0,59275.0,0.0030935]
[1723878189190,0.54360464,59276.0,59275.0,0.0030935]
[1723878189536,0.4630056,59276.0,59275.0,0.0020935]
[1723878189690,0.4630056,59276.0,59275.0,0.0030935]
[1723878190279,0.4630056,59276.0,59275.0,0.0020935]
[1723878190655,0.4630056,59276.0,59275.0,0.0030935]
[1723878190853,0.31120761,59276.0,59275.0,0.0030935]
[1723878191421,0.03540245,59276.0,59275.0,0.0030935]
[1723878191628,0.30800335,59276.0,59275.0,0.0030935]
[1723878191852,0.45981869,59276.0,59275.0,0.0030935]
[1723878192241,0.30800335,59276.0,59275.0,0.0030935]
[1723878192441,0.45981774,59276.0,59275.0,0.0030935]
[1723878193467,0.45956257,59276.0,59275.0,0.0030935]
[1723878194035,0.45956278,59276.0,59275.0,0.0030935]
[1723878195540,0.59452378,59276.0,59275.0,0.0030935]
[1723878195869,0.44270918,59276.0,59275.0,0.0030935]
[1723878196501,0.30774818,59276.0,59275.0,0.0020935]
[1723878196951,0.44270918,59276.0,59275.0,0.0030935]
[1723878197362,0.44270918,59276.0,59275.0,0.0020935]
[1723878197739,0.44270918,59276.0,59275.0,0.0030935]
[1723878199872,0.30774818,59276.0,59275.0,0.0030935]
[1723878205014,0.03514728,59276.0,59275.0,0.0030935]
[1723878205222,0.30695793,59276.0,59275.0,0.0030935]
[1723878206184,0.30668507,59276.0,59275.0,0.0030935]
[1723878208355,0.30660072,59276.0,59275.0,0.0030935]
[1723878209893,0.30653771,59276.0,59275.0,0.0030935]
[1723878215070,0.45821413,59276.0,59275.0,0.0030935]
[1723878223114,0.30653771,59276.0,59275.0,0.0030935]
[1723878223779,0.45918779,59276.0,59275.0,0.0030935]
[1723878224188,0.53938779,59276.0,59275.0,0.0030935]
[1723878224806,0.52267506,59276.0,59275.0,0.0030935]
[1723878225006,0.38771406,59276.0,59275.0,0.0030935]
[1723878225891,0.30751406,59276.0,59275.0,0.0030935]
[1723878227174,0.30751406,59276.0,59275.0,0.0020935]
[1723878227387,0.44901406,59276.0,59275.0,0.0020935]
[1723878228232,0.58397506,59276.0,59275.0,0.0020935]
[1723878232890,0.5832237,59276.0,59275.0,0.0020935]
[1723878233453,0.58270233,59276.0,59275.0,0.0020935]
[1723878237574,0.58269925,59276.0,59275.0,0.0020935]
[1723878240996,0.58256592,59276.0,59275.0,0.0020935]
[1723878241599,0.52126592,59276.0,59275.0,0.0020935]
[1723878242620,0.58786592,59276.0,59275.0,0.0020935]
[1723878244188,0.52126592,59276.0,59275.0,0.0020935]
[1723878246102,0.38630492,59276.0,59275.0,0.0020935]
[1723878246682,0.52126592,59276.0,59275.0,0.0020935]
[1723878249229,0.30610492,59276.0,59275.0,0.1380575]
[1723878249372,0.30610492,59276.0,59275.0,0.2147575]
[1723878250000,0.30585985,59276.0,59275.0,0.2147575]
[1723878250505,0.30585985,59276.0,59275.0,0.0797935]
[1723878250850,0.30585985,59276.0,59275.0,0.08001728]
[1723878252329,0.30585985,59276.0,59275.0,0.0797935]
[1723878255184,0.30584343,59276.0,59275.0,0.0797935]
[1723878256275,0.30584343,59276.0,59275.0,0.08001728]
[1723878256484,0.30558293,59276.0,59275.0,0.08001728]
[1723878259260,0.03402056,59276.0,59275.0,0.08001728]
[1723878259464,0.30565112,59276.0,59275.0,0.08001728]
[1723878263371,0.30539008,59276.0,59275.0,0.08001728]
[1723878263808,0.30544372,59276.0,59275.0,0.08001728]
[1723878265308,0.30544372,59276.0,59275.0,0.14601728]
[1723878266325,0.03375952,59276.0,59275.0,0.14601728]
[1723878266522,0.30544603,59276.0,59275.0,0.1457935]
[1723878268574,0.30541907,59276.0,59275.0,0.1457935]
[1723878271500,0.30541907,59276.0,59275.0,0.14601728]
[1723878273332,0.30550801,59276.0,59275.0,0.14601728]
[1723878277901,0.30551824,59276.0,59275.0,0.14601728]
[1723878279551,0.3052579,59276.0,59275.0,0.14601728]
[1723878280396,0.30616271,59276.0,59275.0,0.14601728]
[1723878281969,0.30616271,59276.0,59275.0,0.1457935]
[1723878282434,0.03440399,59276.0,59275.0,0.1457935]
[1723878282637,0.30600878,59276.0,59275.0,0.1457935]
[1723878283586,0.30575361,59276.0,59275.0,0.1457935]
[1723878287121,0.30576477,59276.0,59275.0,0.1457935]
[1723878288080,0.30576477,59276.0,59275.0,0.0030935]
[1723878289531,0.30576477,59276.0,59275.0,0.00331728]
[1723878296442,0.30551926,59276.0,59275.0,0.00331728]
[1723878300563,0.40011926,59276.0,59275.0,0.00331728]
[1723878300738,0.40009208,59276.0,59275.0,0.00331728]
[1723878303375,0.39983691,59276.0,59275.0,0.00331728]
[1723878304335,0.39973747,59276.0,59275.0,0.00331728]
[1723878308911,0.39989061,59276.0,59275.0,0.00331728]
[1723878313346,0.39963544,59276.0,59275.0,0.00331728]
[1723878313548,0.39971218,59276.0,59275.0,0.00331728]
[1723878313947,0.39971218,59276.0,59275.0,0.08251728]
[1723878314148,0.39971218,59276.0,59275.0,0.14471728]
[1723878314491,0.30511218,59276.0,59275.0,0.14471728]
[1723878319751,0.30511218,59276.0,59275.0,0.54960928]
[1723878319976,0.30511218,59276.0,59275.0,0.99109182]
[1723878320414,0.45704464,59276.0,59275.0,0.99109182]
[1723878322835,0.45875567,59276.0,59275.0,0.99109182]
[1723878323223,0.3068172,59276.0,59275.0,0.99109182]
[1723878325881,0.3068172,59276.0,59275.0,0.21748128]
[1723878326094,0.45875567,59276.0,59275.0,0.00331728]
[1723878326757,0.45847385,59276.0,59275.0,0.00331728]
[1723878326976,0.45847385,59276.0,59275.0,0.0030935]
[1723878327189,0.30656268,59276.0,59275.0,0.0030935]
[1723878331779,0.31667315,59276.0,59275.0,0.0030935]
[1723878333086,0.31667315,59276.0,59275.0,0.00331728]
[1723878333298,0.30623391,59276.0,59275.0,0.00331728]
[1723878333703,0.30597874,59276.0,59275.0,0.00331728]
[1723878336497,0.30599343,59276.0,59275.0,0.00331728]
[1723878341007,0.30681843,59276.0,59275.0,0.00331728]
[1723878343551,0.30656326,59276.0,59275.0,0.00331728]
[1723878348674,0.30656326,59276.0,59275.0,0.0030935]
[1723878349699,0.30656326,59276.0,59275.0,0.00331728]
[1723878349700,0.38866326,59276.0,59275.0,0.00331728]
[1723878350109,0.30656326,59276.0,59275.0,0.00331728]
[1723878350312,0.30645236,59276.0,59275.0,0.00331728]
[1723878354760,0.03395314,59276.0,59275.0,0.00331728]
[1723878354961,0.30642318,59276.0,59275.0,0.00331728]
[1723878359460,0.30730484,59276.0,59275.0,0.00331728]
[1723878362798,0.30759777,59276.0,59275.0,0.00331728]
[1723878363744,0.30733743,59276.0,59275.0,0.00331728]
[1723878364568,0.45927039,59276.0,59275.0,0.00331728]
[1723878367573,0.45927039,59276.0,59275.0,0.13828128]
[1723878369500,0.30733743,59276.0,59275.0,0.13828128]
[1723878369702,0.30733743,59276.0,59275.0,0.00331728]
[1723878371788,0.30690968,59276.0,59275.0,0.00331728]
[1723878373626,0.30665451,59276.0,59275.0,0.00331728]
[1723878380588,0.30665451,59276.0,59275.0,0.0030935]
[1723878380797,0.30665451,59276.0,59275.0,0.00331728]
[1723878381008,0.30674498,59276.0,59275.0,0.00331728]
[1723878382416,0.30674498,59276.0,59275.0,0.13828128]
[1723878383666,0.30648981,59276.0,59275.0,0.13828128]
[1723878384015,0.4584413,59276.0,59275.0,0.13828128]
[1723878384631,0.30648981,59276.0,59275.0,0.13828128]
[1723878385552,0.30678297,59276.0,59275.0,0.13828128]
[1723878385754,0.45872941,59276.0,59275.0,0.13828128]
[1723878386158,0.30678297,59276.0,59275.0,0.13828128]
[1723878386357,0.45873127,59276.0,59275.0,0.13828128]
[1723878386566,0.45873241,59276.0,59275.0,0.13828128]
[1723878386901,0.30694243,59276.0,59275.0,0.13828128]
[1723878388336,0.45831961,59276.0,59275.0,0.13828128]
[1723878388911,0.30637132,59276.0,59275.0,0.13828128]
[1723878390311,0.30625054,59276.0,59275.0,0.13828128]
[1723878391730,0.30625054,59276.0,59275.0,0.1380575]
[1723878392262,0.30625054,59276.0,59275.0,0.0030935]
[1723878398120,0.30625054,59276.0,59275.0,0.00331728]
[1723878399162,0.30625054,59276.0,59275.0,0.0030935]
[1723878399363,0.30625054,59276.0,59275.0,0.00331728]
[1723878405530,0.30625054,59276.0,59275.0,0.0030935]
[1723878405719,1.39218054,59276.0,59275.0,0.0020935]
[1723878406500,1.39218054,59276.0,59275.0,0.0010935]
[1723878406920,1.40318054,59276.0,59275.0,0.0010935]
[1723878407083,1.41618054,59276.0,59275.0,0.0010935]
[1723878408641,1.40518054,59276.0,59275.0,0.0010935]
[1723878409050,1.41618054,59276.0,59275.0,0.0010935]
[1723878409469,1.80340787,59276.0,59275.0,0.0010935]
[1723878411252,1.80340787,59276.0,59275.0,0.000186]
[1723878411456,0.03,59270.0,59267.0,0.00640508]
[1723878411703,0.0946,59268.0,59267.0,0.00640508]
[1723878411924,0.38508508,59268.0,59267.0,0.00640508]
[1723878412126,0.55806987,59268.0,59267.0,0.00640508]
[1723878412480,0.42308987,59268.0,59267.0,0.00640508]
[1723878413548,0.42508987,59268.0,59267.0,0.00640508]
[1723878413860,0.55980898,59268.0,59267.0,0.00640508]
[1723878414261,0.56280898,59268.0,59267.0,0.00640508]
[1723878415029,0.42782898,59268.0,59267.0,0.00640508]
[1723878418935,0.42782898,59268.0,59267.0,0.08670508]
[1723878420825,0.56280898,59268.0,59267.0,0.08670508]
[1723878421284,0.42782898,59268.0,59267.0,0.08670508]
[1723878422546,0.56280898,59268.0,59267.0,0.00640508]
[1723878424258,0.42782898,59268.0,59267.0,0.00640508]
[1723878426731,0.42756864,59268.0,59267.0,0.00640508]
[1723878428341,0.56254864,59268.0,59267.0,0.00640508]
[1723878428708,0.83250864,59268.0,59267.0,0.00540508]
[1723878430552,0.56289451,59268.0,59267.0,0.00540508]
[1723878430774,0.83285451,59268.0,59267.0,0.00540508]
[1723878432787,0.56289451,59268.0,59267.0,0.00540508]
[1723878432992,0.71466126,59268.0,59267.0,0.00540508]
[1723878433327,0.56289451,59268.0,59267.0,0.00540508]
[1723878433501,0.70299451,59268.0,59267.0,0.00540508]
[1723878433706,0.70247276,59268.0,59267.0,0.00540508]
[1723878434530,0.70329776,59268.0,59267.0,0.00540508]
[1723878435114,0.70192669,59268.0,59267.0,0.00540508]
[1723878435654,0.97188669,59268.0,59267.0,0.00540508]
[1723878437762,0.97188669,59268.0,59256.0,0.001]
[1723878437763,0.434994,59260.0,59256.0,0.001]
[1723878437968,0.86455388,59260.0,59256.0,0.001]
[1723878438107,1.07321294,59260.0,59256.0,0.001]
[1723878438353,1.07321294,59260.0,59253.0,0.0831]
[1723878438354,1.34320894,59260.0,59253.0,0.0831]
[1723878438552,1.71249916,59260.0,59253.0,0.0831]
[1723878438957,1.5427842,59260.0,59259.0,0.010075]
[1723878439328,1.55538622,59260.0,59259.0,0.010075]
[1723878440518,1.55438622,59260.0,59259.0,0.009075]
[1723878440692,1.55538622,59260.0,59259.0,0.009075]
[1723878443725,1.52591083,59260.0,59259.0,0.009075]
[1723878444137,1.55591083,59260.0,59259.0,0.009075]
[1723878444548,1.55591083,59260.0,59259.0,0.147375]
[1723878444549,0.88221946,59260.0,59259.0,0.147375]
[1723878444748,0.74104197,59260.0,59259.0,0.147375]
[1723878445313,0.74104197,59260.0,59259.0,0.086475]
[1723878445444,0.74104197,59260.0,59259.0,0.009075]
[1723878447008,0.74106253,59260.0,59259.0,0.009075]
[1723878447236,0.58962025,59260.0,59259.0,0.009075]
[1723878453039,0.86009834,59260.0,59259.0,0.009075]
[1723878453946,0.85957773,59260.0,59259.0,0.009075]
[1723878454156,0.99817773,59260.0,59259.0,0.009075]
[1723878457543,0.99850382,59260.0,59259.0,0.009075]
[1723878457723,0.99932882,59260.0,59259.0,0.009075]
[1723878458082,1.26932482,59260.0,59259.0,0.009075]
[1723878458695,1.42077701,59260.0,59259.0,0.009075]
[1723878458907,1.26932482,59260.0,59259.0,0.009075]
[1723878459121,1.63995256,59260.0,59259.0,0.009075]
[1723878460853,1.90994856,59260.0,59259.0,0.009075]
[1723878461873,1.90612199,59260.0,59259.0,0.009075]
[1723878463010,1.90612199,59260.0,59251.0,0.0002]
[1723878463011,0.135016,59252.0,59251.0,0.0002]
[1723878463221,0.229616,59252.0,59251.0,0.0002]
[1723878464324,0.68468471,59252.0,59251.0,0.0002]
[1723878464691,0.55019026,59252.0,59251.0,0.0002]
[1723878465214,0.68520626,59252.0,59251.0,0.0002]
[1723878466034,0.5590081,59252.0,59251.0,0.0002]
[1723878466491,0.55698506,59252.0,59251.0,0.0002]
[1723878467653,0.91001806,59252.0,59251.0,0.0002]
[1723878467898,0.63998506,59252.0,59251.0,0.0002]
[1723878469110,0.91001806,59252.0,59251.0,0.0002]
[1723878469952,0.91001806,59252.0,59251.0,0.0011075]
[1723878470141,0.82701806,59252.0,59251.0,0.0011075]
[1723878470724,0.82736377,59252.0,59251.0,0.0011075]
[1723878473657,0.82684316,59252.0,59251.0,0.0011075]
[1723878477323,0.97834472,59252.0,59251.0,0.0011075]
[1723878478811,1.23407616,59252.0,59251.0,0.0011075]
[1723878479013,1.60096272,59252.0,59251.0,0.0011075]
[1723878482271,1.60178772,59252.0,59251.0,0.0011075]
[1723878483284,1.27147264,59252.0,59251.0,0.0011075]
[1723878483485,0.82734768,59252.0,59251.0,0.0011075]
[1723878483901,0.82682707,59252.0,59251.0,0.0011075]
[1723878485061,1.09686007,59252.0,59251.0,0.0011075]
[1723878485675,0.82682707,59252.0,59251.0,0.0011075]
[1723878488324,1.41057479,59252.0,59251.0,0.0011075]
[1723878488567,1.87779975,59252.0,59251.0,0.0011075]
[1723878488785,1.70708503,59252.0,59251.0,0.0011075]
[1723878489066,1.43705203,59252.0,59251.0,0.0011075]
[1723878489249,1.65830886,59252.0,59251.0,0.0011075]
[1723878489448,1.70708503,59252.0,59251.0,0.0011075]
[1723878490812,1.64228503,59252.0,59251.0,0.0011075]
[1723878493856,1.64176442,59252.0,59251.0,0.0011075]
[1723878495141,1.63976442,59252.0,59251.0,0.0011075]
[1723878495344,1.64176442,59252.0,59251.0,0.0011075]
[1723878496280,1.63539684,59252.0,59251.0,0.0011075]
[1723878497142,1.69629684,59252.0,59251.0,0.0011075]
[1723878500131,0.135034,59244.0,59243.0,0.0783]
[1723878500331,0.28673682,59244.0,59243.0,0.0783]
[1723878500538,0.32453895,59244.0,59243.0,0.0783]
[1723878500739,0.32453895,59244.0,59242.0,0.0665]
[1723878500740,0.135043,59240.0,59239.0,0.0665]
[1723878500944,0.419124,59240.0,59239.0,0.0665]
[1723878501144,0.55130545,59240.0,59239.0,0.0665]
[1723878501588,0.82139245,59240.0,59239.0,0.0665]
[1723878501791,0.72679245,59240.0,59239.0,0.0665]
[1723878501995,0.82239245,59240.0,59239.0,0.0665]
[1723878502366,0.82339245,59240.0,59239.0,0.0665]
[1723878503542,0.55330545,59240.0,59239.0,0.0665]
[1723878503743,0.82287082,59240.0,59239.0,0.0665]
[1723878503945,0.165046,59239.0,59236.0,0.0665]
[1723878504188,0.0946,59237.0,59236.0,0.1448]
[1723878504491,0.3784684,59237.0,59236.0,0.1448]
[1723878504708,0.41625899,59237.0,59236.0,0.1448]
[1723878504873,0.13239059,59237.0,59236.0,0.1448]
[1723878505076,0.41178597,59237.0,59236.0,0.1448]
[1723878505653,0.41278597,59237.0,59236.0,0.1448]
[1723878507150,0.41317561,59237.0,59236.0,0.1448]
[1723878507554,0.41317561,59237.0,59236.0,0.1457075]
[1723878509617,0.4131642,59237.0,59236.0,0.1457075]
[1723878511229,0.4131642,59237.0,59236.0,0.0792075]
[1723878511686,0.4131642,59237.0,59236.0,0.0009075]
[1723878511881,0.8805152,59237.0,59236.0,0.0009075]
[1723878512416,0.8183152,59237.0,59236.0,0.0009075]
[1723878512992,0.8173152,59237.0,59236.0,0.0009075]
[1723878513199,1.0874162,59237.0,59236.0,0.0009075]
[1723878513413,1.1685162,59237.0,59236.0,0.0009075]
[1723878513605,1.52651153,59237.0,59236.0,0.0009075]
[1723878513920,1.52598988,59237.0,59236.0,0.0009075]
[1723878514146,1.51913363,59237.0,59236.0,0.0009075]
[1723878514876,1.15495428,59237.0,59236.0,0.0009075]
[1723878515083,1.16745428,59237.0,59236.0,0.0009075]
[1723878515701,0.81299784,59237.0,59236.0,0.0009075]
[1723878517748,1.08309884,59237.0,59236.0,0.0009075]
[1723878518358,1.23449256,59237.0,59236.0,0.0009075]
[1723878518699,0.96439156,59237.0,59236.0,0.0009075]
[1723878518849,1.23449256,59237.0,59236.0,0.0009075]
[1723878519054,0.96439156,59237.0,59236.0,0.0009075]
[1723878519253,1.23449256,59237.0,59236.0,0.0009075]
[1723878519455,0.86979156,59237.0,59236.0,0.0009075]
[1723878519654,0.96439156,59237.0,59236.0,0.0009075]
[1723878521424,1.23449256,59237.0,59236.0,0.0009075]
[1723878521714,0.96439156,59237.0,59236.0,0.0009075]
[1723878521909,1.23449256,59237.0,59236.0,0.0009075]
[1723878522096,0.96439156,59237.0,59236.0,0.0009075]
[1723878522299,1.23449256,59237.0,59236.0,0.0009075]
[1723878522940,0.96439156,59237.0,59236.0,0.0009075]
[1723878524065,0.96386991,59237.0,59236.0,0.0009075]
[1723878526526,1.23397091,59237.0,59236.0,0.0009075]
[1723878526725,0.96386991,59237.0,59236.0,0.0009075]
[1723878527575,0.96341128,59237.0,59236.0,0.0009075]
[1723878528022,1.23351228,59237.0,59236.0,0.0009075]
[1723878528225,0.81200474,59237.0,59236.0,0.0009075]
[1723878529182,0.96340507,59237.0,59236.0,0.0009075]
[1723878529784,1.23350607,59237.0,59236.0,0.0009075]
[1723878530117,0.70531,59232.0,59231.0,0.0002]
[1723878530270,1.27598016,59232.0,59231.0,0.0002]
[1723878530473,1.16233405,59232.0,59231.0,0.0002]
[1723878530687,1.31371982,59232.0,59231.0,0.0002]
[1723878531250,1.7819021,59232.0,59231.0,0.0002]
[1723878531514,1.8819021,59232.0,59231.0,0.0002]
[1723878531912,1.69704986,59232.0,59231.0,0.0002]
[1723878532224,2.04498023,59232.0,59231.0,0.0002]
[1723878532926,1.88692869,59232.0,59231.0,0.0002]
[1723878533214,1.88692869,59232.0,59231.0,0.0011075]
[1723878533424,1.88492869,59232.0,59231.0,0.0011075]
[1723878533617,1.88992869,59232.0,59231.0,0.0011075]
[1723878533945,1.89392869,59232.0,59231.0,0.0011075]
[1723878534586,1.88992869,59232.0,59231.0,0.0011075]
[1723878534791,1.89492869,59232.0,59231.0,0.0011075]
[1723878534925,1.88992869,59232.0,59231.0,0.0011075]
[1723878535122,1.89592869,59232.0,59231.0,0.0011075]
[1723878535503,1.88992869,59232.0,59231.0,0.0011075]
[1723878535708,2.06848323,59232.0,59231.0,0.0011075]
[1723878535933,1.89692869,59232.0,59231.0,0.0011075]
[1723878536437,1.89701552,59232.0,59231.0,0.0011075]
[1723878538038,1.88501552,59232.0,59231.0,0.0011075]
[1723878538264,1.82281552,59232.0,59231.0,0.0011075]
[1723878538446,1.47859152,59232.0,59231.0,0.0011075]
[1723878538643,1.57319152,59232.0,59231.0,0.0011075]
[1723878539456,1.57119152,59232.0,59231.0,0.0011075]
[1723878539636,1.57819152,59232.0,59231.0,0.0011075]
[1723878539844,1.57219152,59232.0,59231.0,0.0011075]
[1723878540044,0.675332,59230.0,59229.0,0.07871165]
[1723878540182,1.0446502,59230.0,59229.0,0.07871165]
[1723878540379,1.08237438,59230.0,59229.0,0.07871165]
[1723878540835,1.076196,59230.0,59229.0,0.07871165]
[1723878541468,1.081196,59230.0,59229.0,0.07871165]
[1723878541671,0.405864,59230.0,59229.0,0.07871165]
[1723878542076,0.305864,59230.0,59229.0,0.14011165]
[1723878542283,0.400464,59230.0,59229.0,0.14011165]
[1723878543131,0.165076,59226.0,59222.0,0.0814]
[1723878543334,0.07569688,59223.0,59222.0,0.216484]
[1723878543721,0.11340844,59223.0,59222.0,0.216484]
[1723878543844,0.11340844,59223.0,59222.0,0.277884]
[1723878544259,0.11342179,59223.0,59222.0,0.277884]
[1723878544718,0.11442179,59223.0,59222.0,0.277884]
[1723878545087,0.11442179,59223.0,59222.0,0.548053]
[1723878545331,0.03871156,59223.0,59222.0,0.548053]
[1723878545470,0.03871156,59223.0,59222.0,0.277884]
[1723878545670,0.03871156,59223.0,59222.0,0.548053]
[1723878545878,0.03871156,59223.0,59222.0,0.277884]
[1723878546084,0.30451638,59223.0,59222.0,0.277884]
[1723878546286,0.40546335,59223.0,59222.0,0.277884]
[1723878547587,0.40546335,59223.0,59222.0,0.549053]
[1723878549889,0.40546335,59223.0,59222.0,0.278884]
[1723878550438,0.30451638,59223.0,59222.0,0.278884]
[1723878550651,0.30451638,59223.0,59222.0,0.549053]
[1723878550777,0.30451638,59223.0,59222.0,0.278884]
[1723878551178,0.29951638,59223.0,59222.0,0.549053]
[1723878551399,0.29951638,59223.0,59222.0,0.278884]
[1723878552135,0.40053782,59223.0,59222.0,0.278884]
[1723878552306,0.29951638,59223.0,59222.0,0.549053]
[1723878553333,0.30030331,59223.0,59222.0,0.549053]
[1723878553956,0.30030331,59223.0,59215.0,0.009075]
[1723878553957,0.30030331,59223.0,59217.0,0.001]
[1723878554163,0.30030331,59223.0,59216.0,0.1426]
[1723878554164,0.12628352,59218.0,59216.0,0.1426]
[1723878554276,0.12628352,59218.0,59215.0,0.010075]
[1723878554277,0.26137852,59218.0,59215.0,0.010075]
[1723878554482,0.43033787,59217.0,59215.0,0.010075]
[1723878554682,0.26659175,59216.0,59215.0,0.010075]
[1723878554926,0.30405384,59216.0,59215.0,0.145175]
[1723878555440,0.30405384,59216.0,59215.0,0.010075]
[1723878555668,0.43033736,59216.0,59215.0,0.009075]
[1723878555874,0.58685184,59216.0,59215.0,0.009075]
[1723878557245,0.58785184,59216.0,59215.0,0.009075]
[1723878557415,0.57996606,59216.0,59215.0,0.009075]
[1723878558277,1.00159054,59216.0,59215.0,0.009075]
[1723878558430,0.73139354,59216.0,59215.0,0.009075]
[1723878558851,0.74145236,59216.0,59215.0,0.009075]
[1723878559711,0.73139354,59216.0,59215.0,0.009075]
[1723878559929,0.75999354,59216.0,59215.0,0.009075]
[1723878560353,0.87876306,59216.0,59215.0,0.009075]
[1723878560558,1.03019054,59216.0,59215.0,0.009075]
[1723878560682,1.36638754,59216.0,59215.0,0.009075]
[1723878560884,0.165107,59212.0,59211.0,0.00742]
[1723878561115,1.15784297,59212.0,59211.0,0.00742]
[1723878561320,1.19528181,59212.0,59211.0,0.00742]
[1723878561523,1.53016374,59212.0,59211.0,0.00742]
[1723878561729,0.93757584,59212.0,59211.0,0.00742]
[1723878561933,1.18869743,59212.0,59211.0,0.00742]
[1723878562362,1.27039743,59212.0,59211.0,0.00742]
[1723878562718,1.33639743,59212.0,59211.0,0.00742]
[1723878562924,1.93545522,59212.0,59211.0,0.00742]
[1723878563239,1.93645522,59212.0,59211.0,0.00742]
[1723878563443,2.10668248,59212.0,59211.0,0.00742]
[1723878563867,2.10968248,59212.0,59211.0,0.00742]
[1723878564069,1.93545522,59212.0,59211.0,0.00742]
[1723878564269,2.11300976,59212.0,59211.0,0.00742]
[1723878564553,2.13124908,59212.0,59211.0,0.00742]
[1723878565211,1.95969454,59212.0,59211.0,0.00742]
[1723878566224,2.11078933,59212.0,59211.0,0.00742]
[1723878566626,1.78194654,59212.0,59211.0,0.00742]
[1723878566994,2.1090339,59212.0,59211.0,0.00742]
[1723878567209,1.78049909,59212.0,59211.0,0.00742]
[1723878567699,1.68589909,59212.0,59211.0,0.00742]
[1723878567901,1.86166064,59212.0,59211.0,0.00742]
[1723878568109,1.68590115,59212.0,59211.0,0.00742]
[1723878568743,1.78050115,59212.0,59211.0,0.00742]
[1723878569459,1.68590115,59212.0,59211.0,0.00742]
[1723878570926,0.675582,59208.0,59207.0,0.009075]
[1723878571129,1.01985545,59208.0,59207.0,0.009075]
[1723878571338,1.1831262,59208.0,59207.0,0.009075]
[1723878572076,0.4129442,59208.0,59207.0,0.150675]
[1723878572385,0.04042543,59208.0,59207.0,0.286794]
[1723878572555,0.04042543,59208.0,59207.0,0.557032]
[1723878572852,0.04242543,59208.0,59207.0,0.557032]
[1723878574110,0.04242543,59208.0,59207.0,0.286794]
[1723878574672,0.04242543,59208.0,59207.0,0.557032]
[1723878575257,0.04242543,59208.0,59207.0,0.286794]
[1723878577482,0.04242543,59208.0,59207.0,0.151675]
[1723878578296,0.04242543,59208.0,59207.0,0.286794]
[1723878582722,0.04242543,59208.0,59207.0,0.557032]
[1723878582896,0.04242543,59208.0,59207.0,0.286794]
[1723878585140,0.04242543,59208.0,59207.0,0.151675]
[1723878585313,0.34765569,59208.0,59207.0,0.151675]
[1723878585695,0.52288801,59208.0,59207.0,0.151675]
[1723878585943,0.62356158,59208.0,59207.0,0.151675]
[1723878586495,0.52288801,59208.0,59207.0,0.151675]
[1723878586625,0.34768448,59208.0,59207.0,0.151675]
[1723878587256,0.34768448,59208.0,59207.0,0.088275]
[1723878587507,0.34768448,59208.0,59207.0,0.010075]
[1723878588469,0.79304704,59208.0,59207.0,0.009075]
[1723878588678,0.89377987,59208.0,59207.0,0.009075]
[1723878588878,0.79304704,59208.0,59207.0,0.009075]
[1723878589082,0.91896454,59208.0,59207.0,0.009075]
[1723878590367,0.79304704,59208.0,59207.0,0.009075]
[1723878591345,0.91900051,59208.0,59207.0,0.009075]
[1723878592123,0.64876751,59208.0,59207.0,0.009075]
[1723878593205,0.41909006,59208.0,59207.0,0.147375]
[1723878593431,0.41909006,59208.0,59207.0,0.553732]
[1723878593432,0.09282907,59208.0,59207.0,0.553732]
[1723878593657,0.04242543,59208.0,59207.0,0.283494]
[1723878593892,0.09282569,59208.0,59207.0,0.553732]
[1723878594197,0.09282569,59208.0,59207.0,0.283494]
[1723878594198,0.04242543,59208.0,59207.0,0.283494]
[1723878594409,0.03862543,59208.0,59207.0,0.553732]
[1723878594618,0.03562543,59208.0,59207.0,0.553732]
[1723878594909,0.03662543,59208.0,59207.0,0.553732]
[1723878595088,0.03362543,59208.0,59207.0,0.553732]
[1723878596265,0.08403708,59208.0,59207.0,0.553732]
[1723878597278,0.03362543,59208.0,59207.0,0.553732]
[1723878597907,0.03446237,59208.0,59207.0,0.553732]
[1723878598268,0.11006783,59208.0,59207.0,0.553732]
[1723878599190,0.13526965,59208.0,59207.0,0.553732]
[1723878599404,0.13526965,59208.0,59207.0,0.283494]
[1723878599405,0.29037733,59208.0,59207.0,0.283494]
[1723878600271,0.29037733,59208.0,59207.0,0.009075]
[1723878601062,0.28855363,59208.0,59207.0,0.009075]
[1723878602008,0.28855363,59208.0,59207.0,0.144194]
[1723878602494,0.28855363,59208.0,59207.0,0.220394]
[1723878603451,0.28855363,59208.0,59207.0,0.219394]
[1723878604268,0.28855363,59208.0,59207.0,0.009075]
[1723878605277,0.28955363,59208.0,59207.0,0.011075]
[1723878607544,0.28955363,59208.0,59207.0,0.146194]
[1723878607774,0.28955363,59208.0,59207.0,0.011075]
[1723878608967,0.28955363,59208.0,59207.0,0.146194]
[1723878609174,0.28955363,59208.0,59207.0,0.011075]
[1723878610088,0.28955363,59208.0,59207.0,0.146194]
[1723878610941,0.28955363,59208.0,59207.0,0.011075]
[1723878611344,0.28955363,59208.0,59207.0,0.146194]